bitfinex/quotes_SOLUSD_20240616
["timestamp","ask_amount","ask_price","bid_price","bid_amount"]
[1718527879405,7.90065827,144.04,144.03,2.5689]
[1718527879922,7.90065827,144.04,144.03,15.4134]
[1718527880299,7.90065827,144.04,144.03,7.7067]
[1718527882014,7.90065827,144.04,144.03,2.5689]
[1718527882206,7.90065827,144.04,144.02,7.7068]
[1718527883125,7.90065827,144.04,144.03,25.689]
[1718527883308,7.90065827,144.04,144.03,7.7067]
[1718527883516,7.90065827,144.04,144.03,2.5689]
[1718527883721,7.90065827,144.04,144.03,7.7067]
[1718527883909,7.22065827,144.04,144.03,25.689]
[1718527884208,2.568,144.09,144.04,17.9804]
[1718527884209,8.218,144.08,144.04,17.9804]
[1718527884411,7.21929677,144.06,144.04,25.6862]
[1718527884615,12.86929677,144.06,144.04,2.5686]
[1718527885713,12.86929677,144.06,144.03,23.1194]
[1718527885916,12.86929677,144.06,144.04,2.5686]
[1718527886314,12.86929677,144.06,144.03,25.6881]
[1718527886497,12.86929677,144.06,144.04,2.5687]
[1718527886926,12.86929677,144.06,144.03,25.6881]
[1718527887230,0.17,144.05,144.02,25.6898]
[1718527887430,0.68,144.05,144.03,2.5688]
[1718527887607,0.51,144.05,144.03,23.1197]
[1718527887922,12.86929677,144.06,144.04,2.5687]
[1718527888230,12.86929677,144.06,144.03,25.6884]
[1718527888427,12.86929677,144.06,144.04,2.5687]
[1718527888931,12.86929677,144.06,144.04,7.7061]
[1718527889237,12.86929677,144.06,144.04,2.5687]
[1718527890312,12.86929677,144.06,144.03,23.1196]
[1718527890510,12.86929677,144.06,144.03,25.6883]
[1718527891433,7.21929677,144.06,144.05,25.6854]
[1718527891827,7.21929677,144.06,144.05,2.5685]
[1718527892119,8.218,144.08,144.05,2.5685]
[1718527892414,12.87089281,144.07,144.05,7.7055]
[1718527892619,7.22089281,144.07,144.05,7.7055]
[1718527893932,7.22089281,144.07,144.05,15.4111]
[1718527894713,7.22089281,144.07,144.05,25.6851]
[1718527894908,7.22089281,144.07,144.06,2.5683]
[1718527895114,7.22089281,144.07,144.06,25.6835]
[1718527895420,0.17,144.09,144.07,2.5681]
[1718527895615,0.17,144.09,144.06,25.6834]
[1718527895616,13.55648843,144.09,144.06,25.6834]
[1718527895808,7.90648843,144.09,144.06,25.6834]
[1718527896143,16.12428843,144.09,144.06,2.5682]
[1718527897249,10.47428843,144.09,144.06,7.7049]
[1718527897534,7.22648843,144.09,144.07,2.5681]
[1718527897737,7.22648843,144.09,144.01,8.18302935]
[1718527897738,2.5682,144.07,144.04,2.5686]
[1718527897947,8.2182,144.07,144.04,7.706]
[1718527898413,5.65,144.07,144.04,15.4121]
[1718527898617,8.2182,144.07,144.04,15.4121]
[1718527898827,5.65,144.07,144.04,2.5686]
[1718527899031,5.65,144.06,144.03,25.6879]
[1718527899544,5.65,144.06,144.04,2.5687]
[1718527900142,7.22648843,144.09,144.08,2.568]
[1718527900436,7.22648843,144.09,144.05,21.1923]
[1718527900437,7.22648843,144.09,144.07,15.4088]
[1718527900636,7.22648843,144.09,144.07,7.7043]
[1718527900935,12.87648843,144.09,144.07,7.7043]
[1718527901141,12.87648843,144.09,144.07,2.5681]
[1718527901435,12.87648843,144.09,144.07,7.7043]
[1718527902436,12.87648843,144.09,144.07,2.5681]
[1718527902735,7.22648843,144.09,144.08,25.68]
[1718527902912,5.99,144.1,144.08,23.112]
[1718527903112,0.34,144.1,144.09,2.5678]
[1718527903316,7.56668631,144.1,144.09,2.5678]
[1718527903825,7.56668631,144.1,144.08,25.6798]
[1718527904021,7.56668631,144.1,144.09,25.6782]
[1718527904240,7.56668631,144.1,144.09,2.49414443]
[1718527904625,7.22668631,144.1,144.09,2.49414443]
[1718527905706,7.22668631,144.1,144.08,25.679]
[1718527906241,7.22668631,144.1,144.09,2.5678]
[1718527906451,7.22668631,144.1,144.09,17.9747]
[1718527906743,5.65,144.12,144.09,23.1104]
[1718527906926,7.22906486,144.12,144.1,2.5675]
[1718527907243,12.87906486,144.12,144.1,2.5675]
[1718527907443,7.22906486,144.12,144.1,2.5675]
[1718527907652,7.22906486,144.12,144.09,23.1104]
[1718527907653,15.44636486,144.12,144.09,25.678]
[1718527908131,15.44636486,144.12,144.09,15.4067]
[1718527908336,7.22906486,144.12,144.1,7.7029]
[1718527908839,7.22906486,144.12,144.11,2.5674]
[1718527909036,7.22906486,144.12,144.11,25.6746]
[1718527909346,15.4007,144.15,144.12,2.5672]
[1718527909640,5.65,144.14,144.12,7.7018]
[1718527909813,5.65,144.14,144.12,15.4037]
[1718527910013,5.65,144.14,144.12,7.7018]
[1718527910214,14.92979717,144.15,144.12,7.7018]
[1718527910413,5.65,144.14,144.12,7.7018]
[1718527910644,5.65,144.14,144.12,15.4037]
[1718527910836,5.65,144.14,144.12,7.7018]
[1718527911230,5.65,144.14,144.12,2.5672]
[1718527911531,5.65,144.13,144.1,17.9733]
[1718527911729,5.65,144.13,144.11,15.4046]
[1718527912236,5.65,144.13,144.12,2.5673]
[1718527912437,5.65,144.13,144.11,25.6743]
[1718527912734,5.65,144.13,144.12,2.5673]
[1718527913422,5.65,144.13,144.12,7.7019]
[1718527914437,5.65,144.13,144.12,2.5673]
[1718527914815,5.65,144.14,144.12,7.7018]
[1718527915011,5.65,144.14,144.12,2.5673]
[1718527915211,15.43989717,144.15,144.12,7.7018]
[1718527915451,5.65,144.14,144.12,7.7018]
[1718527915942,10.30629717,144.15,144.12,15.4036]
[1718527916137,15.43979717,144.15,144.12,7.7018]
[1718527916348,5.65,144.14,144.12,15.4036]
[1718527916514,5.65,144.14,144.13,2.5671]
[1718527916719,5.65,144.14,144.12,25.6725]
[1718527917129,5.65,144.13,144.12,2.5671]
[1718527918021,5.65,144.13,144.12,7.7017]
[1718527918223,5.65,144.13,144.11,25.6736]
[1718527918446,5.65,144.13,144.12,2.5673]
[1718527919547,5.65,144.13,144.12,7.7019]
[1718527919940,7.23106618,144.13,144.12,15.4038]
[1718527920926,7.23106618,144.13,144.12,25.673]
[1718527922228,7.6989,144.18,144.15,2.5667]
[1718527922449,282.3614,144.19,144.15,23.1005]
[1718527922640,7.23090689,144.18,144.16,7.6996]
[1718527922847,12.88090689,144.18,144.16,2.5665]
[1718527923023,15.44710689,144.18,144.16,2.5665]
[1718527923527,15.44710689,144.18,144.15,25.6669]
[1718527924228,9.79710689,144.18,144.16,2.5665]
[1718527924440,7.23090689,144.18,144.16,2.5665]
[1718527924638,15.44710689,144.18,144.16,2.5665]
[1718527924833,12.88090689,144.18,144.16,2.5665]
[1718527925034,12.88090689,144.18,144.16,7.6996]
[1718527925437,7.23090689,144.18,144.17,7.6992]
[1718527925660,256.7,144.19,144.18,2.5662]
[1718527925661,262.35,144.19,144.18,2.5662]
[1718527925954,262.35,144.19,144.17,23.0975]
[1718527926252,256.7,144.19,144.18,5.1324]
[1718527926453,256.7,144.19,144.18,7.6986]
[1718527926652,256.7,144.19,144.18,15.3973]
[1718527927154,256.7,144.19,144.18,7.6986]
[1718527927454,256.7,144.19,144.17,7.6988]
[1718527927627,272.14741961,144.19,144.17,2.5664]
[1718527927832,5.65,144.18,144.16,7.6993]
[1718527928555,5.65,144.18,144.17,2.5663]
[1718527928735,12.88141961,144.19,144.17,7.6991]
[1718527928935,15.44751961,144.19,144.16,25.6651]
[1718527929150,15.44751961,144.19,144.17,2.5664]
[1718527929953,5.65,144.18,144.17,7.6992]
[1718527930343,12.88141961,144.19,144.17,7.6992]
[1718527930552,12.88141961,144.19,144.17,15.3984]
[1718527930732,12.88141961,144.19,144.17,12.832]
[1718527930934,12.88141961,144.19,144.18,15.3973]
[1718527930935,7.23141961,144.19,144.18,15.3973]
[1718527931163,7.23141961,144.19,144.18,25.6622]
[1718527932453,7.23141961,144.19,144.18,7.6986]
[1718527933054,7.23141961,144.19,144.18,2.5662]
[1718527933269,7.23141961,144.19,144.17,7.6987]
[1718527934082,12.88141961,144.19,144.17,7.6987]
[1718527934253,15.44741961,144.19,144.16,7.6994]
[1718527934592,20.57951961,144.19,144.16,15.399]
[1718527934753,5.65,144.18,144.16,15.399]
[1718527934956,5.65,144.18,144.16,15.3991]
[1718527935416,5.65,144.18,144.16,7.6994]
[1718527935958,5.65,144.18,144.17,2.5664]
[1718527936657,5.65,144.18,144.16,25.6653]
[1718527937092,5.65,144.18,144.17,2.5664]
[1718527937964,5.65,144.18,144.17,15.3984]
[1718527938390,5.65,144.18,144.17,7.6992]
[1718527939058,5.65,144.18,144.16,25.6649]
[1718527939282,5.65,144.18,144.16,15.399]
[1718527939676,5.65,144.18,144.16,7.6993]
[1718527939894,5.65,144.17,144.09,6.4698]
[1718527940200,5.65,144.15,144.14,25.6691]
[1718527940584,5.65,144.15,144.14,15.4014]
[1718527940782,5.65,144.15,144.13,7.701]
[1718527940986,5.65,144.15,144.13,2.567]
[1718527941200,5.65,144.15,144.13,23.1039]
[1718527941397,5.65,144.15,144.14,7.7007]
[1718527941764,5.65,144.15,144.14,15.4015]
[1718527941995,5.65,144.15,144.14,25.6692]
[1718527942304,5.65,144.15,144.13,2.5669]
[1718527942597,5.65,144.15,144.13,7.7011]
[1718527942776,5.65,144.15,144.09,32.9498]
[1718527943095,5.65,144.15,144.1,26.48]
[1718527943397,7.22563934,144.16,144.15,2.5667]
[1718527943398,12.87563934,144.16,144.15,2.5667]
[1718527943987,7.22563934,144.16,144.15,2.5667]
[1718527944293,7.22563934,144.16,144.15,7.7002]
[1718527944294,12.87563934,144.16,144.15,7.7002]
[1718527944496,12.87563934,144.16,144.15,15.4005]
[1718527944497,7.22563934,144.16,144.15,15.4005]
[1718527944667,7.22563934,144.16,144.15,25.6675]
[1718527945905,5.65,144.18,144.17,2.5663]
[1718527946276,12.87743081,144.18,144.17,7.6991]
[1718527946514,12.87743081,144.18,144.17,2.5663]
[1718527947270,7.22743081,144.18,144.17,15.3983]
[1718527947476,7.22743081,144.18,144.17,25.6639]
[1718527947887,2.5659,144.2,144.18,2.5662]
[1718527948103,5.65,144.19,144.18,2.5662]
[1718527948284,12.87434205,144.19,144.17,25.6638]
[1718527948685,12.87434205,144.19,144.17,7.699]
[1718527949322,15.44034205,144.19,144.17,2.5662]
[1718527949601,7.22434205,144.19,144.17,2.5662]
[1718527949779,7.22434205,144.19,144.17,7.699]
[1718527950441,7.22434205,144.19,144.18,15.3973]
[1718527950586,7.22434205,144.19,144.17,23.097]
[1718527950788,9.79034205,144.19,144.17,2.5662]
[1718527950976,5.65,144.18,144.17,2.5662]
[1718527951176,5.65,144.18,144.16,23.0982]
[1718527951481,7.22434205,144.19,144.17,7.6992]
[1718527951803,15.44034205,144.19,144.17,2.5664]
[1718527951981,0.17,144.18,144.09,43.0468]
[1718527952175,5.65,144.16,144.15,2.5666]
[1718527952385,8.2166,144.16,144.13,15.4023]
[1718527952582,5.65,144.16,144.14,7.7006]
[1718527952895,5.65,144.16,144.14,25.6689]
[1718527953198,5.65,144.16,144.15,2.5667]
[1718527953706,5.65,144.16,144.15,15.4005]
[1718527954200,5.65,144.16,144.15,25.6675]
[1718527955508,5.65,144.16,144.15,2.5667]
[1718527955689,5.65,144.16,144.15,7.7002]
[1718527958088,5.65,144.16,144.15,25.6675]
[1718527958605,12.87669412,144.16,144.15,25.6675]
[1718527959218,15.44319412,144.16,144.14,2.5669]
[1718527959398,7.22669412,144.16,144.15,2.5667]
[1718527959602,12.87669412,144.16,144.15,7.7002]
[1718527960089,7.22669412,144.16,144.15,25.6675]
[1718527960695,12.87669412,144.16,144.15,25.6675]
[1718527961923,7.22669412,144.16,144.15,25.6675]
[1718527962100,12.87669412,144.16,144.15,25.6675]
[1718527962702,12.87669412,144.16,144.15,7.7002]
[1718527963927,12.87669412,144.16,144.15,15.4005]
[1718527964120,13.38669412,144.16,144.14,2.5668]
[1718527964308,13.38669412,144.16,144.14,7.7006]
[1718527964309,5.65,144.15,144.14,7.7006]
[1718527965712,7.73669412,144.16,144.15,2.5667]
[1718527965898,0.17,144.15,144.14,7.7005]
[1718527966094,6.33,144.15,144.14,7.7005]
[1718527966296,6.33,144.15,144.14,2.5667]
[1718527967016,6.33,144.15,144.14,7.7005]
[1718527967502,0.68,144.15,144.14,25.669]
[1718527967705,6.33,144.15,144.14,25.669]
[1718527967920,6.33,144.15,144.14,15.4013]
[1718527968102,6.33,144.15,144.14,7.7005]
[1718527968629,6.33,144.15,144.13,5.1342]
[1718527968832,6.33,144.15,144.14,2.5669]
[1718527969219,6.33,144.15,144.14,7.7007]
[1718527969422,6.33,144.15,144.14,15.4015]
[1718527970533,6.33,144.15,144.14,7.7007]
[1718527970959,6.33,144.15,144.11,10.2692]
[1718527971240,5.65,144.13,144.12,7.7017]
[1718527971441,5.65,144.13,144.12,2.5672]
[1718527971815,12.87616913,144.13,144.12,2.5672]
[1718527972015,12.87616913,144.13,144.12,7.7018]
[1718527973040,12.87616913,144.13,144.12,15.4037]
[1718527973611,12.87616913,144.13,144.11,5.1349]
[1718527973810,5.65,144.12,144.11,7.7022]
[1718527974416,5.65,144.12,144.11,15.4046]
[1718527975633,5.65,144.12,144.1,10.2701]
[1718527975634,5.82,144.12,144.1,7.7027]
[1718527975836,8.3874,144.11,144.09,2.5677]
[1718527976015,5.65,144.1,144.09,2.5677]
[1718527977038,5.99,144.1,144.09,2.5677]
[1718527977211,6.33,144.1,144.09,2.5677]
[1718527977619,6.33,144.1,144.08,25.6788]
[1718527978143,6.33,144.1,144.09,2.5678]
[1718527978722,6.33,144.1,144.09,7.7034]
[1718527978944,6.33,144.1,144.08,2.5679]
[1718527979133,5.65,144.09,144.08,15.4076]
[1718527979335,5.65,144.09,144.08,25.6796]
[1718527979933,6.16,144.09,144.07,7.7043]
[1718527980142,5.65,144.08,144.07,15.4088]
[1718527980456,5.65,144.08,144.07,25.6815]
[1718527981758,5.65,144.08,144.07,7.7043]
[1718527982123,12.87232534,144.08,144.07,7.7043]
[1718527984434,13.55232534,144.08,144.06,7.7048]
[1718527984626,6.16,144.07,144.06,2.5683]
[1718527984845,6.33,144.07,144.06,15.4101]
[1718527985855,7.22232534,144.08,144.07,25.6816]
[1718527986025,7.22232534,144.08,144.06,23.1145]
[1718527986220,12.87232534,144.08,144.06,23.1145]
[1718527986426,13.04232534,144.08,144.07,2.5681]
[1718527986639,13.55232534,144.08,144.06,25.6827]
[1718527986844,13.38232534,144.08,144.07,2.5681]
[1718527987051,13.21232534,144.08,144.07,2.5681]
[1718527987345,12.87232534,144.08,144.07,2.5681]
[1718527987648,13.38232534,144.08,144.06,25.6827]
[1718527987852,13.21232534,144.08,144.06,25.6827]
[1718527988038,15.78032534,144.08,144.05,25.6846]
[1718527988728,15.78032534,144.08,144.06,2.5683]
[1718527988928,8.558,144.08,144.06,2.5683]
[1718527989143,5.99,144.08,144.06,2.5683]
[1718527991357,5.99,144.08,144.06,7.705]
[1718527991558,5.99,144.08,144.06,15.4101]
[1718527992426,5.99,144.08,144.06,7.705]
[1718527992654,13.21608177,144.08,144.06,7.705]
[1718527993441,13.21608177,144.08,144.06,15.41]
[1718527994535,13.21608177,144.08,144.06,7.705]
[1718527994739,13.21608177,144.08,144.06,2.5683]
[1718527994953,15.78408177,144.08,144.05,25.6843]
[1718527995358,5.82,144.07,144.04,25.6861]
[1718527995527,8.5582,144.07,144.04,25.6861]
[1718527996056,8.5582,144.07,144.05,2.5685]
[1718527996230,5.99,144.07,144.05,2.5685]
[1718527996662,5.99,144.07,144.05,7.7055]
[1718527996850,5.99,144.07,144.05,23.1168]
[1718527997054,10.13418177,144.08,144.06,25.6834]
[1718527997055,13.21608177,144.08,144.06,25.6834]
[1718527997251,13.21608177,144.08,144.06,15.41]
[1718527997558,13.21608177,144.08,144.06,7.7049]
[1718527998135,12.87608177,144.08,144.06,5.1367]
[1718527998334,7.22608177,144.08,144.07,7.7044]
[1718527998540,7.22608177,144.08,144.07,2.5681]
[1718527998759,7.22608177,144.08,144.06,25.6827]
[1718527998939,7.22608177,144.08,144.06,7.7047]
[1718527999256,7.22608177,144.08,144.06,2.5682]
[1718527999748,12.87608177,144.08,144.06,2.5682]
[1718527999950,12.87608177,144.08,144.06,15.41]
[1718528001155,12.87608177,144.08,144.06,2.5682]
[1718528001871,35.98808177,144.08,144.05,2.5684]
[1718528002075,8.2182,144.07,144.05,2.5684]
[1718528002574,5.65,144.07,144.05,2.5684]
[1718528002738,5.65,144.07,144.05,15.4109]
[1718528002932,14.93018177,144.08,144.05,15.4109]
[1718528002933,9.79408177,144.08,144.05,25.685]
[1718528003237,2.5682,144.07,144.05,2.5684]
[1718528003756,8.2182,144.07,144.05,2.5684]
[1718528003973,7.7052,144.06,144.03,2.5688]
[1718528004138,15.9229,144.07,144.03,2.5688]
[1718528004139,28.7641,144.07,144.04,2.5687]
[1718528004338,28.7641,144.07,144.03,23.1196]
[1718528004339,2.5683,144.06,144.03,23.1196]
[1718528004562,31.3324,144.07,144.04,2.5687]
[1718528004767,7.22732314,144.06,144.04,2.5687]
[1718528005269,12.87732314,144.06,144.04,7.7061]
[1718528006868,9.79572314,144.06,144.03,25.6882]
[1718528007049,15.44572314,144.06,144.03,23.1195]
[1718528007249,12.87732314,144.06,144.04,25.6867]
[1718528007568,7.22732314,144.06,144.05,7.7056]
[1718528007744,7.22732314,144.06,144.05,25.6854]
[1718528007951,0.17,144.08,144.07,2.5681]
[1718528008164,7.90416588,144.08,144.06,23.115]
[1718528008364,7.90416588,144.08,144.07,2.5681]
[1718528008548,7.90416588,144.08,144.06,25.6832]
[1718528008967,7.90416588,144.08,144.06,2.5682]
[1718528009150,7.90416588,144.08,144.06,7.7049]
[1718528009675,16.12216588,144.08,144.05,25.6845]
[1718528009876,16.12216588,144.08,144.06,2.5683]
[1718528012353,16.12216588,144.08,144.05,25.6845]
[1718528012570,16.12216588,144.08,144.05,23.1162]
[1718528012772,21.25816588,144.08,144.05,25.6846]
[1718528013178,5.65,144.07,144.05,25.6846]
[1718528018664,5.65,144.07,144.02,5.65]
[1718528018665,5.65,144.06,144.04,7.7058]
[1718528018862,5.65,144.06,144.04,15.4119]
[1718528019379,12.87173379,144.06,144.04,15.4119]
[1718528020565,12.87173379,144.06,144.05,2.5685]
[1718528022799,15.44003379,144.06,144.04,2.5685]
[1718528022969,12.87173379,144.06,144.04,7.7059]
[1718528023762,12.87173379,144.06,144.04,15.412]
[1718528023982,12.87173379,144.06,144.05,2.5685]
[1718528024155,13.55173379,144.06,144.05,2.5685]
[1718528025870,13.55173379,144.06,144.05,7.7056]
[1718528026083,13.04173379,144.06,144.05,7.7056]
[1718528026387,7.22173379,144.06,144.05,25.6854]
[1718528027668,7.22173379,144.06,144.05,7.7056]
[1718528027895,7.22173379,144.06,144.05,25.6854]
[1718528028583,5.65,144.07,144.06,2.5683]
[1718528030107,5.65,144.07,144.06,7.705]
[1718528030795,5.65,144.07,144.06,2.5683]
[1718528032183,5.65,144.07,144.01,34.67302935]
[1718528032368,5.65,144.07,144.06,2.5683]
[1718528032670,5.65,144.07,144.05,17.9791]
[1718528032874,5.65,144.07,144.05,23.1163]
[1718528033174,5.65,144.07,144.05,7.7054]
[1718528033907,13.3546,144.07,144.04,25.6861]
[1718528034111,0.68,144.06,144.04,7.7057]
[1718528034774,6.33,144.06,144.04,7.7057]
[1718528034972,6.33,144.06,144.04,15.4118]
[1718528035608,6.33,144.06,144.05,2.5685]
[1718528035979,6.33,144.06,144.05,7.7056]
[1718528037195,6.33,144.06,144.05,2.5685]
[1718528037578,6.33,144.06,144.04,25.6868]
[1718528038081,14.0351,144.06,144.03,17.9816]
[1718528038271,5.65,144.05,144.03,7.7065]
[1718528038907,5.65,144.05,144.04,2.5687]
[1718528039111,5.99,144.05,144.04,2.5687]
[1718528039300,13.21062158,144.05,144.03,23.1197]
[1718528039606,13.21062158,144.05,144.04,2.5687]
[1718528040411,13.21062158,144.05,144.04,7.7061]
[1718528040575,7.56062158,144.05,144.04,7.7061]
[1718528040778,7.22062158,144.05,144.04,25.6871]
[1718528046497,7.22062158,144.05,144.04,7.7061]
[1718528048110,7.22062158,144.05,144.04,2.5687]
[1718528048318,7.22062158,144.05,144.03,25.6878]
[1718528048515,7.22062158,144.05,144.03,7.7062]
[1718528048820,12.87062158,144.05,144.03,7.7062]
[1718528049199,0.68,144.04,144.02,7.7071]
[1718528050300,0.68,144.04,144.02,2.569]
[1718528050500,3.2487,144.04,144.02,2.569]
[1718528050939,0.68,144.04,144.02,2.569]
[1718528051140,0.68,144.04,144.02,7.7071]
[1718528051705,0.51,144.04,144.02,7.7071]
[1718528051996,0.51,144.04,144.02,15.4143]
[1718528052201,0.51,144.04,144.02,12.8453]
[1718528052499,0.51,144.04,144.03,2.5689]
[1718528052701,0.51,144.04,144.01,8.18302935]
[1718528052901,8.7287,144.04,144.01,23.59802935]
[1718528053128,0.51,144.04,144.02,7.707]
[1718528053330,0.51,144.04,144.03,2.5689]
[1718528054318,0.51,144.04,144.03,7.7067]
[1718528054641,0.51,144.04,144.03,2.5689]
[1718528055133,0.51,144.04,144.02,25.6897]
[1718528055434,0.51,144.04,144.03,2.5689]
[1718528056337,0.51,144.04,144.02,25.6897]
[1718528057315,0.51,144.04,144.03,2.5689]
[1718528057819,0.51,144.04,144.02,7.7069]
[1718528058400,0.51,144.04,144.02,2.569]
[1718528058925,0.51,144.04,144.02,7.7071]
[1718528059343,3.0787,144.04,144.02,2.569]
[1718528060645,0.51,144.04,144.02,2.569]
[1718528060850,0.51,144.04,144.01,33.87452935]
[1718528060851,8.7288,144.04,144.01,33.87452935]
[1718528061348,6.16,144.04,144.02,2.569]
[1718528062553,6.16,144.04,144.02,7.7071]
[1718528063433,6.16,144.04,144.03,2.5689]
[1718528063754,6.33,144.04,144.03,2.5689]
[1718528064057,0.68,144.04,144.03,2.5689]
[1718528064226,0.68,144.04,144.02,23.1215]
[1718528064435,7.22062158,144.05,144.03,17.9823]
[1718528064764,7.22062158,144.05,144.04,7.7061]
[1718528064924,7.73062158,144.05,144.04,7.7061]
[1718528065350,7.73062158,144.05,144.04,2.5687]
[1718528065926,7.73062158,144.05,144.03,25.6885]
[1718528066535,7.73062158,144.05,144.03,15.4129]
[1718528067050,7.73062158,144.05,144.03,7.7062]
[1718528067564,7.73062158,144.05,144.03,2.5687]
[1718528067737,10.29912158,144.05,144.02,25.6896]
[1718528068369,7.73062158,144.05,144.03,2.5688]
[1718528068552,10.29912158,144.05,144.03,2.5688]
[1718528068750,10.29912158,144.05,144.02,25.6896]
[1718528069644,10.29912158,144.05,144.02,7.7068]
[1718528071756,15.43622158,144.05,144.02,2.5689]
[1718528071954,5.138,144.03,144.01,8.18302935]
[1718528072135,2.569,144.02,144.01,8.18302935]
[1718528072762,2.569,144.03,144.01,8.18302935]
[1718528073070,23.1191,144.04,144.01,10.75222935]
[1718528073071,25.6879,144.04,144.01,10.75222935]
[1718528073239,23.1191,144.04,144.01,10.75222935]
[1718528073437,2.5689,144.03,144.01,8.18302935]
[1718528073675,23.1191,144.04,144.01,8.18302935]
[1718528073882,25.6879,144.04,144.01,10.75222935]
[1718528074572,15.4124,144.04,144.01,10.75212935]
[1718528074866,8.0467,144.03,144.01,8.18302935]
[1718528075242,2.9089,144.03,144.01,8.18302935]
[1718528076140,0.34,144.03,144.01,10.75222935]
[1718528076648,2.9089,144.03,144.01,10.75222935]
[1718528076852,46.6003,144.02,144.01,8.18302935]
[1718528077052,39.4031,144.02,144.01,8.18302935]
[1718528077356,36.834,144.02,144.01,8.18302935]
[1718528077562,47.1103,144.02,144.01,8.18302935]
[1718528078780,29.1268,144.02,144.01,8.18302935]
[1718528079676,23.4768,144.02,144.01,8.18302935]
[1718528079870,29.1268,144.02,144.01,8.18302935]
[1718528080274,23.9887,144.02,144.01,8.18302935]
[1718528081280,21.4197,144.02,144.01,8.18302935]
[1718528081483,23.9887,144.02,144.01,8.18302935]
[1718528081872,21.4197,144.02,144.01,8.18302935]
[1718528082489,23.9887,144.02,144.01,8.18302935]
[1718528084299,21.4197,144.02,144.01,8.18302935]
[1718528084505,15.7697,144.02,144.01,8.18302935]
[1718528084676,21.4197,144.02,144.01,8.18302935]
[1718528085798,23.9887,144.02,144.01,8.18302935]
[1718528087767,21.4197,144.02,144.01,8.18302935]
[1718528089577,23.9887,144.02,144.01,8.18302935]
[1718528090297,21.4197,144.02,144.01,8.18302935]
[1718528091922,23.9887,144.02,144.01,8.18302935]
[1718528092080,21.4197,144.02,144.01,8.18302935]
[1718528092688,29.1268,144.02,144.01,8.18302935]
[1718528092878,23.9887,144.02,144.01,8.18302935]
[1718528093281,21.4197,144.02,144.01,8.18302935]
[1718528093716,23.9887,144.02,144.01,8.18302935]
[1718528097808,21.4197,144.02,144.01,8.18302935]
[1718528098319,23.9887,144.02,144.01,8.18302935]
[1718528099521,21.4197,144.02,144.01,8.18302935]
[1718528102716,6.33,144.02,144.01,8.18302935]
[1718528103107,6.33,144.02,144.01,15.89072935]
[1718528103300,6.33,144.02,144.01,8.18302935]
[1718528103518,0.68,144.02,144.01,8.18302935]
[1718528103900,6.33,144.02,144.01,8.18302935]
[1718528105291,0.68,144.02,144.01,8.18302935]
[1718528105495,6.33,144.02,144.01,8.18302935]
[1718528106225,0.68,144.02,144.01,15.89072935]
[1718528106457,6.33,144.02,144.01,10.75222935]
[1718528106733,6.33,144.02,144.01,8.18302935]
[1718528110153,0.68,144.02,144.01,15.89072935]
[1718528110431,0.17,144.02,144.01,15.89072935]
[1718528110626,0.17,144.02,144.01,23.59842935]
[1718528111718,0.68,144.02,144.01,33.87542935]
[1718528112130,0.68,144.02,144.01,10.75222935]
[1718528112853,0.68,144.02,144.01,15.89072935]
[1718528113419,0.68,144.02,144.01,10.75222935]
[1718528115133,0.68,144.02,144.01,33.87542935]
[1718528115344,0.68,144.02,144.01,15.89072935]
[1718528116432,0.68,144.02,144.01,23.59842935]
[1718528116617,0.68,144.02,144.01,15.89072935]
[1718528117344,0.68,144.02,144.01,10.75222935]